fUST/lending_fUST_20250208
["ID","MTS","AMOUNT","RATE_DAILY","PERIOD"]
[352144857,1738961444655,-781.68,0.00010958,2]
[352144859,1738961444666,-1085.31,0.00010958,2]
[352144861,1738961444675,-883.44,0.00010958,2]
[352144863,1738961444686,-500.0,0.00010958,2]
[352144865,1738961444696,-500.0,0.00010958,2]
[352144867,1738961444706,-500.0,0.00010958,2]
[352144869,1738961444715,-804.49,0.00010958,2]
[352144870,1738961444725,-500.0,0.00010958,2]
[352144871,1738961444734,-18156.54,0.00010958,2]
[352144872,1738961444743,-7072.43,0.00010958,2]
[352144873,1738961444752,-500.0,0.00010958,2]
[352144874,1738961444762,-500.0,0.00010958,2]
[352144875,1738961444771,-500.0,0.00010958,2]
[352144876,1738961444780,-500.0,0.00010958,2]
[352144877,1738961444790,-49011.36,0.00010958,2]
[352144878,1738961444801,-500.0,0.00010958,2]
[352144879,1738961444810,-500.0,0.00010958,2]
[352144880,1738961444819,-500.0,0.00010958,2]
[352144881,1738961444827,-24136.35,0.00010958,2]
[352144882,1738961444836,-500.0,0.00010958,2]
[352144883,1738961444846,-3330.72,0.00010958,2]
[352144884,1738961444855,-500.0,0.00010958,2]
[352144885,1738961444864,-500.0,0.00010958,2]
[352144886,1738961444873,-500.0,0.00010958,2]
[352144887,1738961444882,-783.29,0.00010958,2]
[352144888,1738961444891,-500.0,0.00010958,2]
[352144889,1738961444900,-500.0,0.00010958,2]
[352144890,1738961444910,-500.0,0.00010958,2]
[352144891,1738961444920,-500.0,0.00010958,2]
[352144892,1738961444930,-2379.88,0.00010958,2]
[352144893,1738961444939,-1055.47,0.00010958,2]
[352144894,1738961444949,-2140.39,0.00010958,2]
[352144895,1738961444959,-1926.2,0.00010958,2]
[352144896,1738961444968,-500.0,0.00010958,2]
[352144897,1738961444977,-151.0,0.00010959,2]
[352144898,1738961444986,-4022.55,0.00010959,2]
[352144899,1738961444995,-8780.27,0.00010959,2]
[352144900,1738961445004,-7875.58,0.00010959,2]
[352144901,1738961445013,-6562.98,0.00010959,2]
[352144902,1738961445021,-5469.15,0.00010959,2]
[352144903,1738961445030,-4557.63,0.00010959,2]
[352144904,1738961445039,-3798.02,0.00010959,2]
[352144905,1738961445050,-3165.02,0.00010959,2]
[352144906,1738961445059,-2637.51,0.00010959,2]
[352144907,1738961445068,-2197.93,0.00010959,2]
[352144908,1738961445077,-1831.61,0.00010959,2]
[352144909,1738961445087,-1526.34,0.00010959,2]
[352144910,1738961445096,-1271.95,0.00010959,2]
[352144911,1738961445106,-1059.96,0.00010959,2]
[352144912,1738961445117,-883.3,0.00010959,2]
[352144913,1738961445128,-736.08,0.00010959,2]
[352144915,1738961445138,-613.4,0.00010959,2]
[352144916,1738961445147,-13264.03974987,0.00010959,2]
[352144917,1738961445156,-500.0,0.00010973,2]
[352144919,1738961445166,-188.13756662,0.00010995,2]
[352144921,1738961445176,-151.0,0.00011,2]
[352144923,1738961445184,-151.0,0.00011,2]
[352144925,1738961445196,-151.0,0.00011,2]
[352144927,1738961445206,-500.0,0.00011073,2]
[352144929,1738961445215,-10296.53,0.00011093,2]
[352144931,1738961445225,-151.0,0.00011094,2]
[352144933,1738961445235,-151.0,0.00011094,2]
[352144935,1738961445244,-151.0,0.00011094,2]
[352144937,1738961445254,-2087.667883,0.00011094,2]
[352144939,1738961445263,-2087.667883,0.00011094,2]
[352144941,1738961445272,-10296.53,0.00011094,2]
[352144943,1738961445281,-10296.53,0.00011094,2]
[352144945,1738961445292,-10296.53,0.00011094,2]
[352144946,1738961445302,-10296.53,0.00011094,2]
[352144948,1738961445312,-10296.53,0.00011094,2]
[352144950,1738961445321,-10296.53,0.00011094,2]
[352144953,1738961445332,-10296.53,0.00011094,2]
[352144954,1738961445342,-10296.53,0.00011094,2]
[352144957,1738961445351,-10296.55,0.00011094,2]
[352144959,1738961445360,-151.0,0.00011095,2]
[352144961,1738961445370,-151.0,0.00011095,2]
[352144963,1738961445380,-151.0,0.00011095,2]
[352144965,1738961445389,-151.0,0.00011095,2]
[352144966,1738961445397,-500.0,0.00011095,2]
[352144968,1738961445407,-500.0,0.00011095,2]
[352144970,1738961445416,-295.232306,0.00011095,2]
[352144973,1738961445426,-2087.667883,0.00011095,2]
[352144975,1738961445436,-2087.667883,0.00011095,2]
[352144977,1738961445446,-2087.667883,0.00011095,2]
[352144979,1738961445455,-2087.667883,0.00011095,2]
[352144981,1738961445465,-500.0,0.00011095,2]
[352144983,1738961445474,-151.0,0.00011095,2]
[352144985,1738961445484,-151.0,0.00011095,2]
[352144987,1738961445494,-151.0,0.00011095,2]
[352144989,1738961445504,-500.0,0.00011095,2]
[352144991,1738961445514,-292.16,0.00011095,2]
[352144993,1738961445523,-500.0,0.00011095,2]
[352144995,1738961445533,-500.0,0.00011095,2]
[352144997,1738961445543,-646.94,0.00011095,2]
[352144999,1738961445552,-339.24654039,0.00011095,2]
[352145001,1738961445562,-198.19,0.00011095,2]
[352145003,1738961445571,-500.0,0.00011095,2]
[352145005,1738961445581,-500.0,0.00011095,2]
[352145007,1738961445590,-414.85,0.00011095,2]
[352145009,1738961445599,-500.0,0.00011095,2]
[352145011,1738961445608,-150.69,0.00011095,2]
[352145013,1738961445618,-500.0,0.00011095,2]
[352145015,1738961445627,-500.0,0.00011095,2]
[352145017,1738961445637,-500.0,0.00011095,2]
[352145019,1738961445646,-500.0,0.00011095,2]
[352145021,1738961445656,-500.0,0.00011095,2]
[352145023,1738961445665,-760.91,0.00011095,2]
[352145025,1738961445675,-500.0,0.00011095,2]
[352145027,1738961445684,-500.0,0.00011095,2]
[352145029,1738961445693,-500.0,0.00011095,2]
[352145031,1738961445703,-500.0,0.00011095,2]
[352145033,1738961445712,-500.0,0.00011095,2]
[352145035,1738961445721,-500.0,0.00011095,2]
[352145037,1738961445731,-500.0,0.00011095,2]
[352145039,1738961445740,-500.0,0.00011095,2]
[352145041,1738961445749,-500.0,0.00011095,2]
[352145043,1738961445759,-292.89185279,0.00011095,2]
[352145045,1738961445768,-625.35916695,0.00011095,2]
[352145047,1738961445779,-565.72,0.00011095,2]
[352145049,1738961445788,-500.0,0.00011095,2]
[352145051,1738961445800,-500.0,0.00011095,2]
[352145053,1738961445809,-500.0,0.00011095,2]
[352145055,1738961445818,-500.0,0.00011095,2]
[352145057,1738961445827,-500.0,0.00011095,2]
[352145059,1738961445837,-500.0,0.00011095,2]
[352145061,1738961445846,-500.0,0.00011095,2]
[352145063,1738961445856,-500.0,0.00011095,2]
[352145065,1738961445865,-500.0,0.00011095,2]
[352145067,1738961445874,-500.0,0.00011095,2]
[352145069,1738961445883,-500.0,0.00011095,2]
[352145071,1738961445893,-500.0,0.00011095,2]
[352145073,1738961445902,-500.0,0.00011095,2]
[352145075,1738961445911,-500.0,0.00011095,2]
[352145077,1738961445920,-500.0,0.00011095,2]
[352145095,1738961446056,-478.48967964,0.00011095,2]
[352145098,1738961446066,-500.0,0.00011095,2]
[352145100,1738961446077,-571.4,0.00011095,2]
[352145103,1738961446086,-500.0,0.00011095,2]
[352145106,1738961446095,-500.0,0.00011095,2]
[352145109,1738961446106,-500.0,0.00011095,2]
[352145112,1738961446119,-500.0,0.00011095,2]
[352145115,1738961446129,-500.0,0.00011095,2]
[352145118,1738961446139,-270.80088978,0.00011095,2]
[352145122,1738961446148,-500.0,0.00011095,2]
[352145124,1738961446159,-500.0,0.00011095,2]
[352145128,1738961446168,-500.0,0.00011095,2]
[352145130,1738961446177,-500.0,0.00011095,2]
[352145133,1738961446188,-500.0,0.00011095,2]
[352145135,1738961446197,-622.88155614,0.00011095,2]
[352145138,1738961446206,-500.0,0.00011095,2]
[352145142,1738961446216,-500.0,0.00011095,2]
[352145145,1738961446225,-500.0,0.00011095,2]
[352145147,1738961446234,-976.62,0.00011095,2]
[352145149,1738961446243,-500.0,0.00011095,2]
[352145151,1738961446252,-500.0,0.00011095,2]
[352145153,1738961446261,-500.0,0.00011095,2]
[352145155,1738961446270,-500.0,0.00011095,2]
[352145157,1738961446280,-511.87366295,0.00011095,2]
[352145159,1738961446289,-500.0,0.00011095,2]
[352145161,1738961446301,-500.0,0.00011095,2]
[352145163,1738961446310,-500.0,0.00011095,2]
[352145165,1738961446319,-500.0,0.00011095,2]
[352145167,1738961446328,-500.0,0.00011095,2]
[352145169,1738961446337,-500.0,0.00011095,2]
[352145171,1738961446345,-585.54,0.00011095,2]
[352145173,1738961446354,-696.71,0.00011095,2]
[352145175,1738961446363,-510.1295938,0.00011095,2]
[352145177,1738961446372,-500.0,0.00011095,2]
[352145179,1738961446381,-500.0,0.00011095,2]
[352145181,1738961446391,-500.0,0.00011095,2]
[352145183,1738961446400,-500.0,0.00011095,2]
[352145185,1738961446409,-500.0,0.00011095,2]
[352145187,1738961446418,-500.0,0.00011095,2]
[352145189,1738961446427,-500.0,0.00011095,2]
[352145191,1738961446436,-500.0,0.00011095,2]
[352145193,1738961446446,-500.0,0.00011095,2]
[352145195,1738961446455,-1011.54,0.00011095,2]
[352145197,1738961446464,-500.0,0.00011095,2]
[352145199,1738961446473,-500.0,0.00011095,2]
[352145201,1738961446482,-500.0,0.00011095,2]
[352145203,1738961446491,-636.34,0.00011095,2]
[352145205,1738961446500,-500.0,0.00011095,2]
[352145207,1738961446509,-500.0,0.00011095,2]
[352145209,1738961446518,-901.91,0.00011095,2]
[352145211,1738961446527,-500.0,0.00011095,2]
[352145213,1738961446536,-500.0,0.00011095,2]
[352145215,1738961446547,-500.0,0.00011095,2]
[352145217,1738961446556,-500.0,0.00011095,2]
[352145219,1738961446565,-500.0,0.00011095,2]
[352145221,1738961446574,-500.0,0.00011095,2]
[352145223,1738961446583,-500.0,0.00011095,2]
[352145225,1738961446592,-1333.4,0.00011095,2]
[352145227,1738961446600,-500.0,0.00011095,2]
[352145229,1738961446610,-500.0,0.00011095,2]
[352145231,1738961446619,-500.0,0.00011095,2]
[352145233,1738961446629,-500.0,0.00011095,2]
[352145235,1738961446638,-500.0,0.00011095,2]
[352145237,1738961446647,-500.0,0.00011095,2]
[352145239,1738961446656,-500.0,0.00011095,2]
[352145241,1738961446665,-628.37032472,0.00011095,2]
[352145243,1738961446674,-204.64206758,0.00011095,2]
[352145245,1738961446683,-500.0,0.00011095,2]
[352145247,1738961446693,-709.94,0.00011095,2]
[352145249,1738961446702,-500.0,0.00011095,2]
[352145251,1738961446711,-500.0,0.00011095,2]
[352145253,1738961446720,-588.24,0.00011095,2]
[352145255,1738961446729,-500.0,0.00011095,2]
[352145257,1738961446738,-500.0,0.00011095,2]
[352145259,1738961446750,-500.0,0.00011095,2]
[352145261,1738961446759,-500.0,0.00011095,2]
[352145263,1738961446771,-500.0,0.00011095,2]
[352145265,1738961446780,-500.0,0.00011095,2]
[352145267,1738961446789,-285.44,0.00011095,2]
[352145269,1738961446800,-151.0,0.00011095,2]
[352145271,1738961446810,-500.0,0.00011095,2]
[352145273,1738961446819,-500.0,0.00011095,2]
[352145275,1738961446829,-246.722797,0.00011095,2]
[352145277,1738961446839,-647.73,0.00011095,2]
[352145279,1738961446848,-500.0,0.00011095,2]
[352145281,1738961446857,-500.0,0.00011095,2]
[352145283,1738961446867,-500.0,0.00011095,2]
[352145285,1738961446875,-556.1,0.00011095,2]
[352145287,1738961446885,-500.0,0.00011095,2]
[352145290,1738961446895,-500.0,0.00011095,2]
[352145292,1738961446903,-537.2282475,0.00011095,2]
[352145294,1738961446913,-1399.46,0.00011095,2]
[352145296,1738961446922,-500.0,0.00011095,2]
[352145298,1738961446931,-500.0,0.00011095,2]
[352145300,1738961446941,-500.0,0.00011095,2]
[352145302,1738961446951,-849.07,0.00011095,2]
[352145304,1738961446960,-500.0,0.00011095,2]
[352145306,1738961446969,-500.0,0.00011095,2]
[352145308,1738961446979,-500.0,0.00011095,2]
[352145310,1738961446988,-500.0,0.00011095,2]
[352145312,1738961446997,-500.0,0.00011095,2]
[352145314,1738961447007,-1191.01,0.00011095,2]
[352145316,1738961447016,-500.0,0.00011095,2]
[352145318,1738961447025,-188.974048,0.00011095,2]
[352145320,1738961447035,-503.02,0.00011095,2]
[352145322,1738961447045,-1094.75,0.00011095,2]
[352145324,1738961447054,-767.12,0.00011095,2]
[352145326,1738961447062,-500.0,0.00011095,2]
[352145328,1738961447071,-500.0,0.00011095,2]
[352145330,1738961447081,-500.0,0.00011095,2]
[352145332,1738961447090,-500.0,0.00011095,2]
[352145334,1738961447100,-500.0,0.00011095,2]
[352145336,1738961447110,-500.0,0.00011095,2]
[352145338,1738961447123,-509.57699855,0.00011095,2]
[352145340,1738961447132,-500.0,0.00011095,2]
[352145342,1738961447141,-500.0,0.00011095,2]
[352145344,1738961447151,-500.0,0.00011095,2]
[352145346,1738961447162,-523.4841126,0.00011095,2]
[352145348,1738961447172,-500.0,0.00011095,2]
[352145350,1738961447181,-500.0,0.00011095,2]
[352145352,1738961447191,-500.0,0.00011095,2]
[352145354,1738961447201,-500.0,0.00011095,2]
[352145356,1738961447211,-500.0,0.00011095,2]
[352145358,1738961447220,-949.26,0.00011095,2]
[352145360,1738961447229,-500.0,0.00011095,2]
[352145362,1738961447238,-456.78622391,0.00011095,2]
[352145364,1738961447248,-500.0,0.00011095,2]
[352145366,1738961447257,-500.0,0.00011095,2]
[352145368,1738961447267,-500.0,0.00011095,2]
[352145370,1738961447276,-500.0,0.00011095,2]
[352145372,1738961447286,-500.0,0.00011095,2]
[352145374,1738961447296,-500.0,0.00011095,2]
[352145375,1738961447305,-188.0,0.00011095,2]
[352145377,1738961447315,-500.0,0.00011095,2]
[352145379,1738961447325,-620.18,0.00011095,2]
[352145381,1738961447334,-500.0,0.00011095,2]
[352145383,1738961447344,-500.0,0.00011095,2]
[352145385,1738961447354,-500.0,0.00011095,2]
[352145387,1738961447363,-500.0,0.00011095,2]
[352145389,1738961447372,-500.0,0.00011095,2]
[352145392,1738961447382,-1244.03,0.00011095,2]
[352145393,1738961447391,-500.0,0.00011095,2]
[352145395,1738961447401,-500.0,0.00011095,2]
[352145397,1738961447410,-500.0,0.00011095,2]
[352145399,1738961447419,-500.0,0.00011095,2]
[352145401,1738961447428,-500.0,0.00011095,2]
[352145403,1738961447438,-500.0,0.00011095,2]
[352145405,1738961447447,-500.0,0.00011095,2]
[352145407,1738961447457,-500.0,0.00011095,2]
[352145409,1738961447466,-599.49,0.00011095,2]
[352145412,1738961447476,-772.16,0.00011095,2]
[352145414,1738961447487,-500.0,0.00011095,2]
[352145416,1738961447497,-500.0,0.00011095,2]
[352145418,1738961447506,-500.0,0.00011095,2]
[352145420,1738961447515,-500.0,0.00011095,2]
[352145422,1738961447524,-524.17210782,0.00011095,2]
[352145423,1738961447534,-500.0,0.00011095,2]
[352145425,1738961447543,-500.0,0.00011095,2]
[352145427,1738961447552,-500.0,0.00011095,2]
[352145429,1738961447562,-7505.55,0.00011095,2]
[352145432,1738961447572,-500.0,0.00011095,2]
[352145433,1738961447581,-500.0,0.00011095,2]
[352145435,1738961447590,-500.0,0.00011095,2]
[352145437,1738961447599,-500.0,0.00011095,2]
[352145439,1738961447609,-500.0,0.00011095,2]
[352145442,1738961447618,-500.0,0.00011095,2]
[352145444,1738961447627,-500.0,0.00011095,2]
[352145445,1738961447636,-500.0,0.00011095,2]
[352145447,1738961447645,-1217.5,0.00011095,2]
[352145449,1738961447654,-300.0,0.00011095,2]
[352145451,1738961447663,-500.0,0.00011095,2]
[352145453,1738961447672,-626.97894453,0.00011095,2]
[352145456,1738961447682,-500.0,0.00011095,2]
[352145458,1738961447691,-1532.58,0.00011095,2]
[352145460,1738961447700,-500.0,0.00011095,2]
[352145462,1738961447710,-500.0,0.00011095,2]
[352145463,1738961447719,-500.0,0.00011095,2]
[352145465,1738961447729,-500.0,0.00011095,2]
[352145467,1738961447738,-500.0,0.00011095,2]
[352145469,1738961447747,-500.0,0.00011095,2]
[352145471,1738961447757,-500.0,0.00011095,2]
[352145473,1738961447766,-933.68,0.00011095,2]
[352145476,1738961447776,-500.0,0.00011095,2]
[352145478,1738961447786,-704.17,0.00011095,2]
[352145480,1738961447797,-500.0,0.00011095,2]
[352145481,1738961447806,-500.0,0.00011095,2]
[352145483,1738961447815,-509.39700835,0.00011095,2]
[352145486,1738961447826,-500.0,0.00011095,2]
[352145487,1738961447835,-887.33,0.00011095,2]
[352145489,1738961447844,-3007.64,0.00011095,2]
[352145491,1738961447854,-570.26,0.00011095,2]
[352145494,1738961447864,-500.0,0.00011095,2]
[352145495,1738961447873,-500.0,0.00011095,2]
[352145498,1738961447883,-548.48,0.00011095,2]
[352145500,1738961447893,-500.0,0.00011095,2]
[352145502,1738961447903,-500.0,0.00011095,2]
[352145504,1738961447912,-500.0,0.00011095,2]
[352145506,1738961447922,-4011.41,0.00011095,2]
[352145508,1738961447931,-500.0,0.00011095,2]
[352145510,1738961447940,-500.0,0.00011095,2]
[352145511,1738961447949,-500.0,0.00011095,2]
[352145513,1738961447958,-556.29751977,0.00011095,2]
[352145515,1738961447968,-500.0,0.00011095,2]
[352145517,1738961447977,-500.0,0.00011095,2]
[352145519,1738961447987,-500.0,0.00011095,2]
[352145521,1738961447997,-2199.31,0.00011095,2]
[352145523,1738961448007,-500.0,0.00011095,2]
[352145525,1738961448017,-179.032552,0.00011095,2]
[352145527,1738961448028,-500.0,0.00011095,2]
[352145529,1738961448038,-500.0,0.00011095,2]
[352145531,1738961448051,-992.27,0.00011095,2]
[352145533,1738961448061,-500.0,0.00011095,2]
[352145535,1738961448071,-461.78918939,0.00011095,2]
[352145537,1738961448081,-179.032552,0.00011095,2]
[352145539,1738961448091,-500.0,0.00011095,2]
[352145541,1738961448103,-500.0,0.00011095,2]
[352145543,1738961448115,-500.0,0.00011095,2]
[352145545,1738961448126,-500.0,0.00011095,2]
[352145547,1738961448137,-544.56,0.00011095,2]
[352145549,1738961448153,-4866.21,0.00011095,2]
[352145551,1738961448167,-500.0,0.00011095,2]
[352145553,1738961448178,-743.81,0.00011095,2]
[352145555,1738961448189,-500.0,0.00011095,2]
[352145556,1738961448201,-5020.35,0.00011095,2]
[352145557,1738961448214,-228.63496614,0.00011095,2]
[352145558,1738961448225,-500.0,0.00011095,2]
[352145559,1738961448236,-500.0,0.00011095,2]
[352145560,1738961448247,-737.15,0.00011095,2]
[352145561,1738961448258,-1046.69,0.00011095,2]
[352145562,1738961448269,-500.0,0.00011095,2]
[352145563,1738961448279,-1818.429805,0.00011095,2]
[352145564,1738961448290,-500.0,0.00011095,2]
[352145565,1738961448309,-500.0,0.00011095,2]
[352145566,1738961448320,-963.38,0.00011095,2]
[352145567,1738961448333,-1818.429805,0.00011095,2]
[352145568,1738961448343,-500.0,0.00011095,2]
[352145569,1738961448354,-500.0,0.00011095,2]
[352145570,1738961448365,-500.0,0.00011095,2]
[352145571,1738961448376,-500.0,0.00011095,2]
[352145572,1738961448387,-1863.68,0.00011095,2]
[352145574,1738961448397,-500.0,0.00011095,2]
[352145576,1738961448407,-500.0,0.00011095,2]
[352145578,1738961448418,-1823.01,0.00011095,2]
[352145580,1738961448429,-883.33,0.00011095,2]
[352145582,1738961448439,-500.0,0.00011095,2]
[352145584,1738961448449,-500.0,0.00011095,2]
[352145586,1738961448459,-151.0,0.00011095,2]
[352145588,1738961448470,-500.0,0.00011095,2]
[352145590,1738961448481,-500.0,0.00011095,2]
[352145592,1738961448492,-500.0,0.00011095,2]
[352145594,1738961448502,-500.0,0.00011095,2]
[352145596,1738961448512,-500.0,0.00011095,2]
[352145598,1738961448522,-500.0,0.00011095,2]
[352145600,1738961448533,-500.0,0.00011095,2]
[352145602,1738961448543,-500.0,0.00011095,2]
[352145604,1738961448553,-2196.16,0.00011095,2]
[352145606,1738961448564,-17311.74,0.00011095,2]
[352145607,1738961448574,-772.44,0.00011095,2]
[352145609,1738961448585,-968.49,0.00011095,2]
[352145611,1738961448596,-500.0,0.00011095,2]
[352145613,1738961448606,-500.0,0.00011095,2]
[352145615,1738961448617,-10169.9,0.00011095,2]
[352145618,1738961448627,-500.0,0.00011095,2]
[352145620,1738961448639,-500.0,0.00011095,2]
[352145622,1738961448649,-500.0,0.00011095,2]
[352145623,1738961448661,-458.54865058,0.00011095,2]
[352145625,1738961448671,-500.0,0.00011095,2]
[352145627,1738961448682,-500.0,0.00011095,2]
[352145629,1738961448693,-522.51,0.00011095,2]
[352145631,1738961448704,-5849.59,0.00011095,2]
[352145633,1738961448714,-500.0,0.00011095,2]
[352145635,1738961448725,-500.0,0.00011095,2]
[352145638,1738961448736,-500.0,0.00011095,2]
[352145639,1738961448746,-500.0,0.00011095,2]
[352145642,1738961448758,-902.76,0.00011095,2]
[352145644,1738961448768,-500.0,0.00011095,2]
[352145646,1738961448778,-500.0,0.00011095,2]
[352145648,1738961448788,-1349.6,0.00011095,2]
[352145649,1738961448798,-500.0,0.00011095,2]
[352145652,1738961448809,-500.0,0.00011095,2]
[352145654,1738961448820,-3119.76,0.00011095,2]
[352145655,1738961448829,-500.0,0.00011095,2]
[352145657,1738961448839,-500.0,0.00011095,2]
[352145659,1738961448849,-500.0,0.00011095,2]
[352145661,1738961448861,-2575.31,0.00011095,2]
[352145663,1738961448871,-500.0,0.00011095,2]
[352145665,1738961448881,-500.0,0.00011095,2]
[352145667,1738961448892,-371.48801102,0.00011095,2]
[352145669,1738961448903,-500.0,0.00011095,2]
[352145671,1738961448914,-500.0,0.00011095,2]
[352145686,1738961449073,-500.0,0.00011095,2]
[352145688,1738961449084,-500.0,0.00011095,2]
[352145690,1738961449095,-500.0,0.00011095,2]
[352145692,1738961449107,-546.130717,0.00011095,2]
[352145694,1738961449120,-546.130717,0.00011095,2]
[352145696,1738961449131,-500.0,0.00011095,2]
[352145698,1738961449140,-522.41,0.00011095,2]
[352145700,1738961449151,-500.0,0.00011095,2]
[352145702,1738961449162,-1199.12,0.00011095,2]
[352145704,1738961449172,-546.130717,0.00011095,2]
[352145706,1738961449181,-4249.06,0.00011095,2]
[352145708,1738961449191,-285.073411,0.00011095,2]
[352145709,1738961449203,-546.130717,0.00011095,2]
[352145711,1738961449214,-500.0,0.00011095,2]
[352145713,1738961449225,-500.0,0.00011095,2]
[352145715,1738961449241,-500.0,0.00011095,2]
[352145717,1738961449251,-285.073411,0.00011095,2]
[352145719,1738961449261,-500.0,0.00011095,2]
[352145721,1738961449272,-500.0,0.00011095,2]
[352145723,1738961449282,-1926.44,0.00011095,2]
[352145725,1738961449294,-500.0,0.00011095,2]
[352145727,1738961449306,-500.0,0.00011095,2]
[352145729,1738961449316,-500.0,0.00011095,2]
[352145731,1738961449327,-500.0,0.00011095,2]
[352145733,1738961449337,-500.0,0.00011095,2]
[352145735,1738961449347,-596.33,0.00011095,2]
[352145736,1738961449358,-500.0,0.00011095,2]
[352145738,1738961449369,-500.0,0.00011095,2]
[352145740,1738961449379,-500.0,0.00011095,2]
[352145742,1738961449390,-500.0,0.00011095,2]
[352145744,1738961449400,-500.0,0.00011095,2]
[352145746,1738961449411,-500.0,0.00011095,2]
[352145748,1738961449422,-755.28,0.00011095,2]
[352145750,1738961449432,-500.0,0.00011095,2]
[352145752,1738961449443,-2705.27,0.00011095,2]
[352145754,1738961449454,-500.0,0.00011095,2]
[352145756,1738961449465,-2538.43,0.00011095,2]
[352145758,1738961449475,-7192.99,0.00011095,2]
[352145760,1738961449486,-515.34,0.00011095,2]
[352145762,1738961449496,-500.0,0.00011095,2]
[352145764,1738961449506,-500.0,0.00011095,2]
[352145766,1738961449517,-638.67,0.00011095,2]
[352145768,1738961449527,-1517.44,0.00011095,2]
[352145769,1738961449537,-420.29993893,0.00011095,2]
[352145772,1738961449548,-500.0,0.00011095,2]
[352145773,1738961449558,-428.83655808,0.00011095,2]
[352145775,1738961449568,-500.0,0.00011095,2]
[352145777,1738961449579,-500.0,0.00011095,2]
[352145779,1738961449589,-500.0,0.00011095,2]
[352145781,1738961449598,-500.0,0.00011095,2]
[352145783,1738961449609,-500.0,0.00011095,2]
[352145785,1738961449618,-500.0,0.00011095,2]
[352145787,1738961449628,-1316.14,0.00011095,2]
[352145789,1738961449637,-500.0,0.00011095,2]
[352145791,1738961449647,-500.0,0.00011095,2]
[352145793,1738961449657,-1798.76,0.00011095,2]
[352145795,1738961449667,-500.0,0.00011095,2]
[352145797,1738961449678,-3064.56,0.00011095,2]
[352145800,1738961449688,-781.68,0.00011095,2]
[352145802,1738961449698,-1085.31,0.00011095,2]
[352145804,1738961449708,-883.44,0.00011095,2]
[352145806,1738961449718,-500.0,0.00011095,2]
[352145808,1738961449728,-500.0,0.00011095,2]
[352145810,1738961449737,-500.0,0.00011095,2]
[352145811,1738961449746,-804.49,0.00011095,2]
[352145813,1738961449756,-500.0,0.00011095,2]
[352145815,1738961449765,-18156.54,0.00011095,2]
[352145817,1738961449775,-7072.43,0.00011095,2]
[352145819,1738961449784,-500.0,0.00011095,2]
[352145821,1738961449794,-500.0,0.00011095,2]
[352145823,1738961449816,-500.0,0.00011095,2]
[352145825,1738961449826,-327.289372,0.00011095,2]
[352145827,1738961449835,-500.0,0.00011095,2]
[352145829,1738961449844,-49011.36,0.00011095,2]
[352145831,1738961449854,-500.0,0.00011095,2]
[352145833,1738961449863,-327.289372,0.00011095,2]